bitfinex/quotes_ETHUSD_20240730
["timestamp","ask_amount","ask_price","bid_price","bid_amount"]
[1722335856087,2.99284,3341.3,3340.9,0.14178784]
[1722335856306,2.99284,3341.3,3341.0,0.14155143]
[1722335856503,0.299268,3341.4,3340.7,2.99338]
[1722335856711,2.99263,3341.6,3341.0,2.99309]
[1722335857046,8.35899586,3341.8,3341.2,2.99291]
[1722335857194,3.54253,3341.7,3341.0,2.99305]
[1722335857513,2.99262,3341.6,3341.0,2.99305]
[1722335857714,0.55,3341.5,3341.1,0.1416105]
[1722335857900,3.54267,3341.5,3341.1,0.1416105]
[1722335858719,0.55,3341.5,3341.1,0.1416105]
[1722335858872,2.99272,3341.5,3341.1,0.1416105]
[1722335859077,0.55,3341.4,3340.9,2.9932]
[1722335859379,0.55,3341.4,3341.0,0.1416105]
[1722335859894,0.55,3341.4,3341.0,3.1347205]
[1722335860096,0.55,3341.4,3341.0,6.1277805]
[1722335860313,0.55,3341.6,3341.0,3.1346705]
[1722335861092,0.55,3341.6,3341.1,2.99302]
[1722335861614,0.55,3341.6,3341.2,3.1345305]
[1722335861821,0.55,3341.7,3341.2,3.1344905]
[1722335862471,3.5425,3341.7,3341.2,0.1416105]
[1722335862713,2.99257,3341.6,3341.0,2.99305]
[1722335862912,0.55,3341.5,3341.1,0.1416105]
[1722335863705,0.55,3341.5,3341.2,2.99289]
[1722335863909,0.55,3341.6,3341.3,2.99281]
[1722335864093,3.5424,3341.8,3341.4,0.1416105]
[1722335864584,3.5424,3341.8,3341.1,2.99302]
[1722335864585,2.99249,3341.7,3341.1,2.99302]
[1722335864782,0.55,3341.6,3341.5,0.1416105]
[1722335864980,0.55,3341.6,3341.1,2.99302]
[1722335865328,0.55,3341.6,3341.0,37.99311]
[1722335865329,3.54262,3341.6,3341.0,37.99311]
[1722335865614,0.55,3341.6,3341.2,0.1416105]
[1722335865780,0.55,3341.6,3341.1,2.99301]
[1722335865977,0.55,3341.6,3341.3,0.1416105]
[1722335866304,2.99299,3341.2,3340.5,2.3927]
[1722335866675,0.55,3341.1,3340.5,2.3927]
[1722335867079,0.55,3341.4,3340.6,2.369]
[1722335867300,2.99276,3341.4,3340.9,2.9932]
[1722335867505,0.55,3341.3,3340.9,2.9932]
[1722335868148,0.55,3341.3,3341.1,2.99301]
[1722335868518,0.73764811,3341.6,3341.1,2.99301]
[1722335868519,0.55,3341.5,3341.1,2.99301]
[1722335868723,0.55,3341.5,3340.9,2.99312]
[1722335869054,1.88150307,3342.6,3342.0,2.99222]
[1722335869357,1.88150307,3342.6,3342.0,35.0]
[1722335869358,2.99168,3342.6,3342.0,35.0]
[1722335869562,2.99168,3342.6,3341.8,2.369]
[1722335869563,2.99177,3342.5,3341.8,2.369]
[1722335869727,2.992,3342.3,3341.7,2.99242]
[1722335869922,2.99214,3342.1,3341.5,2.99265]
[1722335870217,2.99214,3342.1,3341.3,5.99279]
[1722335870218,0.299177,3342.4,3341.8,0.14112521]
[1722335870534,2.99226,3342.0,3341.9,0.14112521]
[1722335870702,2.99226,3342.0,3341.4,2.99275]
[1722335870901,2.99226,3342.0,3341.9,0.14112521]
[1722335871139,2.99226,3342.0,3341.4,2.99268]
[1722335871342,0.55,3341.9,3341.4,5.98536]
[1722335871544,0.55,3341.9,3341.5,2.99265]
[1722335871942,0.55,3341.9,3341.7,2.99244]
[1722335872146,7.24729136,3342.5,3341.6,2.99257]
[1722335872147,2.992,3342.3,3341.6,2.99257]
[1722335872317,2.99223,3342.0,3341.5,2.99262]
[1722335872642,2.99223,3342.0,3341.4,2.99275]
[1722335872643,0.55,3341.9,3341.4,2.99275]
[1722335873171,0.55,3341.9,3341.5,2.99266]
[1722335873465,2.99213,3342.1,3341.5,2.99266]
[1722335873466,3.54223,3342.0,3341.5,2.99266]
[1722335873609,2.9924,3341.8,3341.2,3.29287]
[1722335873810,0.55,3341.7,3341.2,6.28573]
[1722335874346,0.55,3341.7,3341.3,2.99284]
[1722335874700,0.55,3341.7,3341.2,3.29286]
[1722335875432,0.55,3341.7,3341.1,0.3]
[1722335875632,0.55,3341.7,3341.3,2.99284]
[1722335875952,3.5425,3341.7,3341.2,2.99289]
[1722335876105,0.55,3341.7,3341.3,2.9928]
[1722335876302,3.5424,3341.8,3341.3,2.9928]
[1722335876506,3.5424,3341.8,3341.0,5.36205]
[1722335876507,3.5424,3341.8,3341.2,2.99293]
[1722335877006,3.5424,3341.8,3341.0,5.36205]
[1722335877007,2.99261,3341.6,3341.0,2.369]
[1722335877251,0.55,3341.5,3340.6,5.36241]
[1722335877423,0.55,3341.5,3340.6,2.99341]
[1722335877620,2.99298,3341.2,3340.6,2.99341]
[1722335877818,0.55,3341.1,3340.8,2.99327]
[1722335878018,0.55,3341.1,3340.7,2.99338]
[1722335878327,0.55,3341.2,3340.7,2.99338]
[1722335878648,0.55,3341.2,3340.6,2.99341]
[1722335878649,0.55,3341.2,3340.6,2.99346]
[1722335878848,2.99304,3341.1,3340.6,2.99346]
[1722335879034,0.55,3341.0,3340.6,2.99346]
[1722335879242,0.55,3341.0,3340.9,2.9932]
[1722335879547,1.88110619,3341.9,3341.1,2.99295]
[1722335879752,8.35873586,3342.1,3341.3,2.99284]
[1722335879753,2.99223,3342.0,3341.3,2.99284]
[1722335879962,2.99223,3342.0,3341.5,2.99265]
[1722335880465,3.82789559,3342.2,3341.5,2.99265]
[1722335880614,2.99231,3341.9,3341.4,2.99275]
[1722335881142,0.55,3341.8,3341.4,2.99275]
[1722335881465,0.55,3341.8,3341.5,2.99261]
[1722335881609,2.992,3342.3,3341.3,37.99279]
[1722335881809,2.99213,3342.1,3341.6,2.99253]
[1722335882038,4.19818276,3342.1,3341.6,2.99253]
[1722335882219,1.20605276,3342.1,3341.6,2.99253]
[1722335882435,1.20605276,3342.1,3341.7,2.99244]
[1722335882619,5.992,3342.3,3341.6,2.99257]
[1722335883004,2.99223,3342.0,3341.3,35.0]
[1722335883206,2.99241,3341.8,3341.3,37.9928]
[1722335883450,2.99241,3341.8,3341.3,37.99283]
[1722335883636,2.99228,3342.0,3340.8,2.99321]
[1722335883637,2.99267,3341.5,3340.8,2.99321]
[1722335883837,2.99267,3341.5,3340.6,2.3118]
[1722335883838,3.54283,3341.4,3340.6,2.99341]
[1722335884014,2.99296,3341.2,3340.6,2.99341]
[1722335884328,3.54283,3341.4,3340.4,35.0]
[1722335884329,0.55,3341.1,3340.4,35.0]
[1722335884657,0.55,3341.4,3341.0,2.99309]
[1722335885015,0.55,3341.6,3341.0,2.99309]
[1722335885222,0.55,3341.6,3341.2,2.99289]
[1722335885430,0.55,3341.8,3341.4,2.99271]
[1722335885637,1.62925359,3341.9,3341.4,2.99271]
[1722335885835,1.62925359,3341.9,3341.5,0.13167568]
[1722335886311,4.62156359,3341.9,3341.5,0.13167568]
[1722335886713,7.61393359,3341.9,3341.3,2.99284]
[1722335886949,3.75380336,3341.8,3341.4,0.13167568]
[1722335887273,0.55,3341.7,3341.4,0.13167568]
[1722335887413,2.99262,3341.6,3341.4,0.13167568]
[1722335887615,2.99262,3341.6,3341.0,2.99305]
[1722335887616,0.55,3341.5,3341.0,2.99305]
[1722335888348,0.55,3341.5,3341.2,2.99291]
[1722335888556,3.54256,3341.7,3341.0,2.99304]
[1722335888727,2.9926,3341.6,3341.0,2.99304]
[1722335888924,3.54267,3341.5,3341.0,2.99304]
[1722335889447,3.54267,3341.5,3340.8,2.99323]
[1722335889647,3.54267,3341.5,3341.0,2.99306]
[1722335890155,3.54267,3341.5,3340.9,2.9932]
[1722335890524,0.55,3341.5,3341.1,2.99301]
[1722335890850,0.55,3341.6,3341.1,2.99301]
[1722335891269,0.55,3341.6,3341.3,2.9928]
[1722335891563,0.55,3341.7,3341.3,2.9928]
[1722335891725,0.55,3341.7,3341.4,2.99274]
[1722335892073,3.54231,3341.9,3341.4,2.99274]
[1722335892238,4.38385071,3341.9,3341.4,2.99274]
[1722335892839,2.99245,3341.8,3341.3,2.99284]
[1722335893040,0.55,3341.7,3341.3,2.99284]
[1722335893871,3.54249,3341.7,3341.2,2.99292]
[1722335894050,6.53504,3341.7,3341.2,2.99292]
[1722335894396,6.53504,3341.7,3341.3,37.99278]
[1722335894397,0.55,3341.7,3341.3,37.99278]
[1722335894561,0.55,3341.8,3341.4,2.99271]
[1722335894889,0.55,3341.9,3341.4,2.99271]
[1722335895204,4.38386476,3341.9,3341.4,2.99271]
[1722335895353,3.54232,3341.9,3341.4,2.99271]
[1722335895555,3.54232,3341.9,3341.5,0.13159548]
[1722335895556,2.99253,3341.7,3341.5,0.13159548]
[1722335895904,0.55,3341.6,3341.2,2.99293]
[1722335899963,2.99271,3341.5,3341.0,2.9931]
[1722335900173,2.99298,3341.2,3341.1,0.13159548]
[1722335900372,3.30376388,3341.2,3340.6,2.99342]
[1722335900668,0.55,3341.1,3340.6,37.99346]
[1722335900913,3.54307,3341.1,3340.6,37.99346]
[1722335901323,3.30393608,3341.0,3340.3,2.369]
[1722335901528,2.99334,3340.8,3340.3,5.36269]
[1722335901829,2.99334,3340.8,3340.4,35.0]
[1722335902199,0.55,3340.7,3340.4,35.0]
[1722335902676,0.55,3340.7,3340.4,37.99359]
[1722335902881,0.55,3340.9,3340.4,35.0]
[1722335903076,2.9932,3340.9,3340.4,37.9936]
[1722335903305,0.55,3340.8,3340.4,35.0]
[1722335903480,0.55,3340.8,3340.4,37.99364]
[1722335903693,2.99334,3340.8,3340.4,35.0]
[1722335903880,3.54343,3340.7,3340.2,2.99377]
[1722335904083,2.99343,3340.7,3340.2,2.99377]
[1722335904512,2.99343,3340.7,3340.3,35.0]
[1722335904712,2.9933,3340.8,3340.3,37.99373]
[1722335904955,0.55,3340.7,3340.3,37.99373]
[1722335905127,0.55,3340.7,3340.3,35.0]
[1722335905330,3.54342,3340.7,3340.3,35.0]
[1722335905682,0.55,3340.7,3340.3,35.0]
[1722335907604,2.99338,3340.7,3340.3,35.0]
[1722335907909,2.9933,3340.8,3340.3,35.0]
[1722335908110,0.55,3340.7,3340.3,35.0]
[1722335908810,3.54345,3340.7,3340.3,35.0]
[1722335909151,3.54352,3340.6,3340.3,35.0]
[1722335909841,3.54352,3340.6,3340.1,2.99391]
[1722335910008,0.55,3340.6,3340.1,2.99387]
[1722335910334,0.55,3340.6,3340.3,2.99367]
[1722335910534,0.55,3340.8,3340.1,37.99387]
[1722335910853,0.55,3340.8,3340.3,2.99373]
[1722335911023,2.99339,3340.7,3340.1,40.9877]
[1722335911225,0.55,3340.6,3340.1,37.99383]
[1722335912012,0.55,3340.6,3340.1,40.98769]
[1722335912235,0.55,3340.6,3340.1,37.99383]
[1722335912910,0.55,3340.6,3340.2,2.99382]
[1722335913861,0.55,3340.6,3340.2,37.99382]
[1722335914526,0.55,3340.6,3340.4,2.99361]
[1722335914719,0.55,3340.8,3340.4,2.99361]
[1722335914955,3.54329,3340.8,3340.3,2.99373]
[1722335915252,3.54329,3340.8,3340.4,0.12787148]
[1722335915746,0.55,3340.8,3340.4,0.12787148]
[1722335917662,0.55,3340.8,3340.4,3.12150148]
[1722335918581,0.55,3340.8,3340.5,2.99355]
[1722335918754,0.55,3340.9,3340.5,2.99355]
[1722335918954,3.5432,3340.9,3340.6,0.12787148]
[1722335919141,3.5432,3340.9,3340.3,2.99366]
[1722335919577,3.5432,3340.9,3340.4,0.12787148]
[1722335919939,3.5432,3340.9,3340.4,3.12152148]
[1722335920341,0.55,3340.9,3340.5,2.99354]
[1722335920553,0.55,3341.0,3340.5,2.99351]
[1722335920987,0.55,3341.0,3340.6,0.12787148]
[1722335921190,2.99331,3340.8,3340.6,0.12787148]
[1722335921353,3.54338,3340.7,3340.3,2.369]
[1722335921542,3.54338,3340.7,3339.9,2.369]
[1722335921742,2.99361,3340.5,3340.0,2.99401]
[1722335921974,0.55,3340.4,3340.1,0.12777862]
[1722335923190,2.3575832,3341.0,3340.3,2.99367]
[1722335923191,4.87651897,3341.0,3340.3,2.99367]
[1722335923342,4.87651897,3341.0,3340.4,2.99365]
[1722335923343,0.55,3340.9,3340.4,2.99365]
[1722335923774,0.55,3340.9,3340.2,2.99378]
[1722335923775,3.54325,3340.9,3340.5,0.12784193]
[1722335923972,3.54325,3340.9,3340.3,2.99373]
[1722335924273,3.54325,3340.9,3340.6,0.12784193]
[1722335924595,3.54325,3340.9,3340.7,0.12784193]
[1722335924805,3.54325,3340.9,3340.4,2.99365]
[1722335925000,3.54325,3340.9,3340.8,0.12772799]
[1722335925186,2.99329,3340.8,3340.2,2.99378]
[1722335925396,0.55,3340.7,3340.2,2.99378]
[1722335925997,0.55,3340.7,3340.3,2.99369]
[1722335928302,3.54338,3340.7,3340.2,2.99382]
[1722335929003,0.55,3340.7,3340.2,2.99382]
[1722335929592,3.54342,3340.7,3340.2,2.99382]
[1722335930019,0.55,3340.7,3340.3,2.99372]
[1722335930215,0.55,3340.7,3340.3,3.12143955]
[1722335931681,3.54345,3340.7,3340.3,0.12771955]
[1722335931975,3.54345,3340.7,3340.1,5.98777]
[1722335932188,3.54345,3340.7,3340.4,0.12771955]
[1722335932503,3.54345,3340.7,3340.2,2.99382]
[1722335932667,3.54345,3340.7,3340.5,0.12771955]
[1722335932864,3.54345,3340.7,3340.2,2.99382]
[1722335933060,3.54345,3340.7,3340.3,0.12771955]
[1722335933963,3.73515731,3340.7,3340.3,0.12771955]
[1722335934198,2.99365,3340.4,3339.9,2.99405]
[1722335934518,2.99353,3340.6,3339.9,2.99405]
[1722335934519,2.99356,3340.5,3340.4,0.12771955]
[1722335934803,2.99356,3340.5,3339.9,2.99403]
[1722335934958,2.99356,3340.5,3340.4,0.12771955]
[1722335935162,3.54356,3340.5,3339.9,5.98809]
[1722335935479,3.54356,3340.5,3340.0,3.12168955]
[1722335935480,0.55,3340.4,3340.0,3.12168955]
[1722335935696,0.55,3340.4,3340.1,2.99387]
[1722335935995,0.55,3340.5,3340.2,2.99382]
[1722335936205,0.55,3340.6,3340.3,2.99374]
[1722335936424,3.5433,3340.8,3340.3,2.99374]
[1722335936578,3.30406354,3340.7,3340.2,2.99382]
[1722335936906,5.42760546,3340.8,3340.4,0.12773642]
[1722335936907,3.54351,3340.6,3340.4,0.12773642]
[1722335937115,3.54351,3340.6,3340.1,2.99391]
[1722335937116,0.55,3340.5,3340.1,2.99384]
[1722335937285,0.55,3340.5,3340.2,2.99382]
[1722335937725,3.54348,3340.6,3340.1,2.99391]
[1722335938032,0.55,3340.6,3340.2,2.9938]
[1722335938201,0.55,3340.7,3340.2,2.9938]
[1722335939634,0.55,3340.7,3340.1,2.99391]
[1722335939635,2.99348,3340.6,3340.1,2.99391]
[1722335939836,0.55,3340.5,3340.1,2.99391]
[1722335940524,3.5436,3340.5,3340.0,2.994]
[1722335940729,4.38579744,3340.5,3339.8,5.99413]
[1722335941042,4.38579744,3340.5,3339.6,2.99428]
[1722335941043,2.99387,3340.2,3339.6,2.99428]
[1722335941336,2.99374,3340.3,3339.7,2.99423]
[1722335941337,2.99376,3340.3,3339.7,2.99423]
[1722335941538,3.54385,3340.2,3339.6,2.99428]
[1722335941743,3.54385,3340.2,3339.7,2.99426]
[1722335941744,0.55,3340.2,3339.7,2.99426]
[1722335941907,0.55,3340.2,3339.8,2.99417]
[1722335942414,3.54383,3340.2,3339.7,2.99427]
[1722335942799,3.54383,3340.2,3339.6,2.99436]
[1722335943256,2.99394,3340.1,3339.6,2.99436]
[1722335943766,3.54385,3340.2,3339.6,2.99431]
[1722335944047,3.54389,3340.2,3339.6,2.9943]
[1722335944248,0.31071983,3340.1,3339.6,2.99429]
[1722335944458,0.55,3340.2,3339.6,2.99429]
[1722335944746,0.3107354,3340.1,3339.6,2.99429]
[1722335944901,3.54387,3340.2,3339.7,2.99427]
[1722335945222,0.31074692,3340.1,3339.7,3.10945077]
[1722335945400,6.53778,3340.2,3339.7,0.11518077]
[1722335945601,2.99405,3340.0,3339.7,0.11518077]
[1722335945805,2.99419,3339.8,3339.3,5.48029]
[1722335947104,2.99419,3339.8,3339.4,2.99454]
[1722335947306,2.9941,3339.9,3339.4,2.99454]
[1722335947505,3.5442,3339.8,3339.3,5.48033]
[1722335950030,2.99432,3339.7,3339.2,2.99469]
[1722335950258,2.99432,3339.7,3339.1,2.99473]
[1722335950425,2.99432,3339.7,3339.2,2.99468]
[1722335951329,2.99432,3339.7,3339.2,2.99472]
[1722335952532,2.12116113,3339.8,3339.3,2.99463]
[1722335952748,5.11537113,3339.8,3339.3,2.99463]
[1722335953533,3.54421,3339.8,3339.3,2.99463]
[1722335954212,8.10963113,3339.8,3339.3,2.99463]
[1722335954414,8.10963113,3339.8,3339.2,2.99471]
[1722335954415,2.99428,3339.7,3339.2,2.99471]
[1722335955013,2.99442,3339.6,3339.0,2.3719]
[1722335955353,3.54442,3339.6,3338.7,5.36411]
[1722335955538,2.99459,3339.4,3338.9,2.99495]
[1722335956340,2.99459,3339.4,3338.7,5.36411]
[1722335956341,3.54466,3339.3,3338.8,2.99507]
[1722335956540,3.54466,3339.3,3338.7,2.99513]
[1722335956541,2.99477,3339.2,3338.7,2.99513]
[1722335957461,0.55,3339.3,3338.6,3.0]
[1722335957631,2.99491,3339.0,3338.7,3.0]
[1722335958047,2.99473,3339.2,3338.6,2.99526]
[1722335958048,0.55,3338.9,3338.6,2.99526]
[1722335958453,2.99491,3339.0,3338.5,2.99535]
[1722335958667,0.55,3338.9,3338.5,5.99066]
[1722335958974,0.55,3338.9,3338.5,2.99529]
[1722335959182,0.55,3339.0,3338.7,2.99517]
[1722335959381,2.99493,3339.0,3338.5,2.99534]
[1722335959541,0.55,3338.9,3338.5,2.99534]
[1722335959737,0.55,3338.9,3338.5,5.99062]
[1722335960193,0.55,3339.0,3338.6,0.10356557]
[1722335960687,0.55,3339.0,3338.6,3.09881557]
[1722335961042,3.54495,3339.0,3338.6,0.10356557]
[1722335961365,3.54495,3339.0,3338.5,2.99529]
[1722335961551,3.54495,3339.0,3338.7,0.10356557]
[1722335961760,0.55,3339.0,3338.7,0.10356557]
[1722335961953,0.55,3339.0,3338.5,2.99529]
[1722335962291,0.55,3339.0,3338.6,2.99525]
[1722335962450,3.54491,3339.0,3338.7,0.10356557]
[1722335962638,3.54491,3339.0,3338.5,2.99535]
[1722335962845,3.54491,3339.0,3338.6,0.10356557]
[1722335963387,3.54491,3339.0,3338.6,3.09882557]
[1722335963388,0.55,3339.0,3338.6,3.09882557]
[1722335963593,0.55,3339.0,3338.7,2.99515]
[1722335963766,2.99477,3339.2,3338.6,3.09882557]
[1722335963955,0.55,3339.1,3338.8,0.1039077]
[1722335964151,0.55,3339.1,3338.6,2.99526]
[1722335964359,0.55,3339.1,3338.9,0.1039077]
[1722335964592,0.55,3339.1,3338.8,2.99507]
[1722335964763,0.55,3339.2,3339.0,0.1039077]
[1722335965088,0.55,3339.2,3338.8,2.99507]
[1722335965297,0.55,3339.2,3338.9,1.0939077]
[1722335965714,4.56228248,3339.6,3339.1,0.99]
[1722335966000,1.08731934,3339.5,3339.1,0.99]
[1722335966576,1.08731934,3339.5,3339.2,0.1039077]
[1722335967589,1.08731934,3339.5,3339.0,2.99486]
[1722335967790,1.08731934,3339.5,3339.3,0.1039077]
[1722335967987,1.08731934,3339.5,3339.0,2.99486]
[1722335968187,1.08731934,3339.5,3339.4,0.1039077]
[1722335968411,1.08731934,3339.5,3339.0,2.99486]
[1722335968575,1.08731934,3339.5,3339.4,0.1039077]
[1722335968768,1.08731934,3339.5,3338.9,2.99499]
[1722335968968,1.08731934,3339.5,3339.4,0.1039077]
[1722335968969,4.08177934,3339.5,3339.4,0.1039077]
[1722335969273,2.99455,3339.4,3338.9,2.99499]
[1722335969494,3.94001875,3339.4,3339.0,0.1039077]
[1722335969667,0.55,3339.3,3339.0,0.1039077]
[1722335970202,2.99476,3339.2,3339.0,0.1039077]
[1722335970415,0.55,3339.1,3339.0,0.1039077]
[1722335970570,0.55,3339.1,3338.7,2.99512]
[1722335970771,0.55,3339.1,3339.0,0.1039077]
[1722335970966,0.55,3339.1,3338.7,2.99512]
[1722335971209,0.55,3339.1,3339.0,0.1039077]
[1722335971391,0.55,3339.1,3338.7,2.99512]
[1722335971392,1.29848688,3339.1,3338.7,2.99512]
[1722335971579,0.55,3339.1,3339.0,0.1039077]
[1722335972112,0.55,3339.1,3338.7,2.99512]
[1722335972272,0.55,3339.1,3339.0,0.1039077]
[1722335972601,3.54481,3339.1,3338.6,2.99525]
[1722335972812,3.54481,3339.1,3339.0,0.1039077]
[1722335973019,4.53639187,3339.1,3338.6,2.99525]
[1722335973179,3.54481,3339.1,3339.0,0.1039077]
[1722335973378,3.54481,3339.1,3338.6,2.99525]
[1722335973579,3.54481,3339.1,3339.0,0.1039077]
[1722335973779,3.54481,3339.1,3338.6,2.99525]
[1722335974016,6.53967,3339.1,3339.0,0.1039077]
[1722335974220,2.99509,3338.8,3338.3,2.99553]
[1722335975183,2.99509,3338.8,3338.4,0.10049058]
[1722335977028,2.995,3338.9,3338.4,3.09593058]
[1722335977323,0.55,3338.8,3338.4,0.10049058]
[1722335977532,2.99513,3338.8,3338.4,0.10049058]
[1722335977735,2.99497,3339.0,3338.4,0.10049058]
[1722335977736,2.99497,3339.0,3338.4,3.09591058]
[1722335977962,3.54505,3338.9,3338.4,3.09591058]
[1722335978524,2.9951,3338.8,3338.4,0.10049058]
[1722335978738,0.55,3338.7,3338.4,0.10049058]
[1722335978894,3.54518,3338.7,3338.2,2.99561]
[1722335979094,3.54518,3338.7,3338.3,0.10049058]
[1722335979526,3.54518,3338.7,3338.3,0.09638728]
[1722335980227,3.54518,3338.7,3338.3,3.09191728]
[1722335981309,0.55,3338.7,3338.4,35.0]
[1722335981509,0.55,3338.7,3338.5,0.1003538]
[1722335981953,0.55,3338.7,3338.3,2.99553]
[1722335982126,0.55,3338.7,3338.6,0.1003538]
[1722335982328,0.55,3338.7,3338.4,35.0]
[1722335982546,0.55,3338.7,3338.5,0.1003538]
[1722335985718,0.55,3338.7,3338.3,2.99547]
[1722335986056,0.55,3338.7,3338.4,35.1003538]
[1722335986353,0.55,3338.7,3338.5,2.99535]
[1722335986562,0.55,3338.9,3338.5,2.99531]
[1722335986751,0.55,3339.0,3338.6,2.99524]
[1722335986930,0.55,3339.0,3338.7,35.0]
[1722335987355,0.55,3339.0,3338.8,0.10042984]
[1722335989560,2.99499,3338.9,3338.8,0.10042984]
[1722335989759,4.29951663,3338.9,3338.8,0.10042984]
[1722335989954,1.30452663,3338.9,3338.6,35.0]
[1722335990157,0.55,3338.8,3338.6,35.0]
[1722335992102,2.9952,3338.7,3338.2,2.99555]
[1722335992296,0.55,3338.6,3338.5,0.99]
[1722335994391,0.55,3338.6,3338.4,35.0]
[1722335996429,0.55,3338.6,3338.5,0.99]
[1722335996925,0.55,3338.6,3338.4,35.0]
[1722335999419,0.55,3338.6,3338.5,0.99]
[1722336000124,0.55,3338.6,3338.5,35.99]
[1722336000528,1.57142922,3338.8,3338.6,2.99526]
[1722336000687,1.57142922,3338.8,3338.7,3.98517]
[1722336000890,7.75835586,3339.6,3338.8,2.99504]
[1722336000891,1.57241983,3338.9,3338.8,2.99504]
[1722336001102,1.57241983,3339.1,3338.8,38.98504]
[1722336001337,4.8814538,3339.4,3338.8,38.98504]
[1722336001338,2.99455,3339.4,3338.8,38.98504]
[1722336001497,1.57240597,3339.1,3338.8,38.98504]
[1722336001896,1.57240597,3339.1,3338.9,2.99498]
[1722336002419,1.57240597,3339.1,3338.9,5.98993]
[1722336002618,1.57240597,3339.0,3338.9,2.99495]
[1722336002821,1.57240597,3339.1,3338.8,35.99]
[1722336003030,1.57240597,3339.0,3338.8,0.99]
[1722336003343,1.57282281,3338.9,3338.6,3.9852]
[1722336003548,1.57279534,3338.9,3338.6,3.9852]
[1722336003840,1.57279534,3338.9,3338.7,35.0]
[1722336004041,1.57279534,3338.9,3338.6,3.9852]
[1722336004207,1.57279534,3338.9,3338.8,0.10116045]
[1722336004405,1.57279534,3338.9,3338.7,2.99517]
[1722336004615,1.57279534,3338.9,3338.8,0.10116045]
[1722336005244,1.57279534,3338.9,3338.6,38.9852]
[1722336005539,1.57279534,3338.9,3338.7,2.99516]
[1722336005742,1.57279534,3338.9,3338.8,0.10116045]
[1722336006311,1.57279534,3338.9,3338.8,4.08624045]
[1722336006947,1.57279534,3339.0,3338.8,4.08624045]
[1722336007245,1.57279534,3338.9,3338.8,4.08624045]
[1722336007908,1.57279534,3339.0,3338.8,4.08624045]
[1722336008310,1.57279534,3338.9,3338.8,4.08624045]
[1722336008528,4.88199441,3339.3,3338.8,4.08624045]
[1722336008529,1.57279534,3339.0,3338.8,4.08624045]
[1722336008734,1.57279534,3339.0,3338.9,2.99499]
[1722336008940,1.57279534,3339.1,3339.0,2.9949]
[1722336009120,1.57279534,3339.1,3339.0,3.9849]
[1722336009321,1.57279534,3339.2,3339.0,4.08609425]
[1722336010147,1.5716549,3339.2,3339.0,4.08609425]
[1722336010549,1.57187249,3339.2,3339.0,4.08609425]
[1722336011769,1.57187249,3339.1,3339.0,4.08609425]
[1722336012081,1.57187249,3339.2,3339.0,4.08609425]
[1722336012630,1.57187249,3339.1,3339.0,4.08609425]
[1722336013222,0.7743217,3339.4,3339.0,1.09119425]
[1722336013422,1.57232518,3339.1,3339.0,1.09119425]
[1722336014233,1.88679021,3339.3,3339.0,1.09119425]
[1722336014438,0.26369677,3339.2,3339.0,1.09119425]
[1722336014679,1.57235312,3339.1,3339.0,1.09119425]
[1722336015183,1.88679021,3339.3,3339.0,1.09119425]
[1722336015326,0.26367001,3339.2,3339.0,1.09119425]
[1722336015521,1.88679021,3339.3,3339.0,1.09119425]
[1722336015771,0.26364779,3339.2,3339.0,1.09119425]
[1722336015935,1.88679021,3339.3,3339.0,1.09119425]
[1722336016133,0.2636485,3339.2,3339.0,1.09119425]
[1722336016335,0.2636485,3339.1,3339.0,1.09119425]
[1722336017063,0.2636485,3339.1,3339.0,0.10119425]
[1722336017064,3.2584585,3339.1,3339.0,0.10119425]
[1722336017265,4.45235422,3339.1,3339.0,0.10119425]
[1722336017451,4.45235422,3339.1,3338.6,0.99]
[1722336017452,2.99492,3339.0,3338.6,0.99]
[1722336017657,1.57227631,3338.9,3338.6,0.99]
[1722336018256,4.56730631,3338.9,3338.6,0.99]
[1722336018562,1.08572896,3338.8,3338.6,0.99]
[1722336018769,2.99503,3338.9,3338.6,0.99]
[1722336018943,0.26376037,3338.8,3338.6,0.99]
[1722336019153,4.88184312,3338.9,3338.6,0.99]
[1722336019355,2.99529,3338.6,3338.1,2.99567]
[1722336019554,2.99529,3338.6,3338.0,5.38979]
[1722336019555,1.57305376,3338.4,3338.0,5.38979]
[1722336019736,1.57305376,3338.4,3338.2,0.99]
[1722336019936,1.57307728,3338.4,3338.2,0.99]
[1722336020270,1.57307728,3338.4,3338.3,0.10008284]
[1722336020476,0.55,3338.4,3338.3,0.10008284]
[1722336020775,2.12337793,3338.4,3338.3,0.10008284]
[1722336021580,0.55,3338.4,3338.3,0.10008284]
[1722336022042,2.12337793,3338.4,3338.3,0.10008284]
[1722336022245,2.93478472,3338.4,3338.3,0.10008284]
[1722336022454,2.93436263,3338.4,3338.3,0.10008284]
[1722336022780,2.93432377,3338.4,3338.3,0.10008284]
[1722336023283,2.9341667,3338.4,3338.3,0.10008284]
[1722336023584,5.9296067,3338.4,3338.3,0.10008284]
[1722336023882,5.92945557,3338.4,3338.3,0.10008284]
[1722336024040,2.12260878,3338.4,3338.3,0.10008284]
[1722336024655,2.12238016,3338.4,3338.3,0.10008284]
[1722336025704,0.55,3338.4,3338.3,3.09561284]
[1722336026391,1.57238016,3338.6,3338.5,5.9907]
[1722336026595,1.5723183,3339.0,3338.7,2.99509]
[1722336026838,1.5723183,3339.0,3338.9,3.98499]
[1722336027152,1.5723183,3339.1,3338.9,3.98499]
[1722336027292,1.5723183,3339.1,3339.0,1.09053074]
[1722336028120,1.5723183,3339.3,3339.2,2.99472]